bitfinex/quotes_SOLUSD_20230120
["timestamp","ask_amount","ask_price","bid_price","bid_amount"]
[1674236336046,129.0902,22.06,22.045,10.0]
[1674236336277,129.0902,22.06,22.046,17.96]
[1674236336471,129.0902,22.06,22.046,17.0]
[1674236336677,129.0902,22.06,22.045,17.0]
[1674236336886,129.0902,22.06,22.044,20.60276608]
[1674236337109,129.0902,22.06,22.041,44.04]
[1674236337316,129.0902,22.06,22.042,0.96]
[1674236338064,129.0902,22.06,22.042,17.96]
[1674236338691,129.0902,22.06,22.042,17.0]
[1674236339511,129.0902,22.06,22.043,0.96]
[1674236339939,129.0902,22.06,22.044,20.60276608]
[1674236340150,129.0902,22.06,22.045,17.96]
[1674236340360,129.0902,22.06,22.045,17.0]
[1674236341109,129.0902,22.06,22.046,10.0]
[1674236341303,129.0902,22.06,22.047,17.0]
[1674236341512,129.0902,22.06,22.045,17.0]
[1674236341744,129.0902,22.06,22.046,0.96]
[1674236341934,129.0902,22.06,22.046,21.56276608]
[1674236342147,129.0902,22.06,22.047,17.0]
[1674236343316,34.0,22.063,22.05,25.95]
[1674236343679,114.9556,22.066,22.051,17.0]
[1674236343848,114.9556,22.066,22.052,0.96]
[1674236344563,114.9556,22.066,22.052,10.96]
[1674236344792,114.9556,22.066,22.053,17.0]
[1674236344992,10.0,22.068,22.054,0.96]
[1674236345320,43.99,22.07,22.054,0.96]
[1674236345516,33.99,22.071,22.054,0.96]
[1674236345728,33.98,22.075,22.06,28.01]
[1674236345942,10.0,22.074,22.061,17.96]
[1674236346152,117.061,22.078,22.061,17.96]
[1674236346361,33.97,22.087,22.07,27.83]
[1674236346555,33.97,22.087,22.071,17.0]
[1674236346992,10.0,22.086,22.072,10.0]
[1674236347210,10.0,22.086,22.073,17.0]
[1674236347426,33.95,22.097,22.073,17.0]
[1674236347735,33.95,22.097,22.08,27.81]
[1674236347934,10.0,22.096,22.081,27.0]
[1674236348339,151.011,22.098,22.081,27.0]
[1674236348552,33.93,22.109,22.09,27.95]
[1674236348758,10.0,22.108,22.091,17.0]
[1674236349081,18.108987,22.105,22.091,17.0]
[1674236349289,33.94,22.104,22.091,17.0]
[1674236349500,10.0,22.103,22.091,17.0]
[1674236349705,10.0,22.101,22.091,17.0]
[1674236349921,33.95,22.1,22.091,17.0]
[1674236350154,10.0,22.099,22.091,17.0]
[1674236350548,33.95,22.098,22.091,17.0]
[1674236350885,10.0,22.097,22.091,17.0]
[1674236351080,10.0,22.097,22.076,33.98]
[1674236351295,10.0,22.097,22.077,20.0]
[1674236351503,33.95,22.096,22.077,20.0]
[1674236351722,10.0,22.095,22.074,30.0]
[1674236351917,33.95,22.094,22.075,33.98]
[1674236352129,10.0,22.095,22.076,20.0]
[1674236352649,10.0,22.095,22.077,30.92197811]
[1674236352865,10.0,22.095,22.078,20.0]
[1674236353592,10.0,22.095,22.079,17.0]
[1674236353819,10.0,22.095,22.08,20.0]
[1674236354256,33.95,22.094,22.071,33.99]
[1674236354467,33.95,22.094,22.068,33.99]
[1674236354662,10.0,22.093,22.069,20.92197811]
[1674236354874,33.96,22.092,22.069,20.92197811]
[1674236355523,10.0,22.091,22.07,55.77]
[1674236355842,10.0,22.091,22.072,10.0]
[1674236356037,10.0,22.091,22.073,17.96]
[1674236356563,10.0,22.091,22.074,20.92197811]
[1674236356771,10.0,22.091,22.075,17.0]
[1674236357494,10.0,22.089,22.075,17.0]
[1674236358353,10.0,22.089,22.076,10.0]
[1674236358570,10.0,22.091,22.077,17.0]
[1674236359721,10.0,22.091,22.07,27.81]
[1674236359918,10.0,22.089,22.07,27.81]
[1674236360128,33.96,22.088,22.07,27.81]
[1674236360558,10.0,22.087,22.07,27.81]
[1674236360770,10.0,22.087,22.071,10.0]
[1674236360975,10.0,22.089,22.071,10.0]
[1674236361195,10.0,22.091,22.073,10.0]
[1674236361400,10.0,22.091,22.074,33.99]
[1674236361617,10.0,22.091,22.075,10.0]
[1674236361811,33.95,22.096,22.076,50.98]
[1674236362238,119.6637,22.099,22.08,27.81]
[1674236362568,119.6637,22.099,22.082,10.0]
[1674236362757,119.6637,22.099,22.083,17.96]
[1674236363088,10.0,22.098,22.083,17.96]
[1674236363511,10.0,22.098,22.084,10.0]
[1674236363819,10.0,22.098,22.085,17.0]
[1674236364225,129.6637,22.099,22.085,17.0]
[1674236364427,28.117757,22.101,22.085,17.0]
[1674236364644,10.0,22.1,22.085,17.0]
[1674236365081,10.0,22.1,22.084,17.0]
[1674236365295,10.0,22.1,22.085,0.96]
[1674236366031,10.0,22.1,22.078,33.98]
[1674236366243,10.0,22.1,22.081,20.0]
[1674236366244,33.95,22.099,22.081,20.0]
[1674236366780,10.0,22.098,22.078,20.0]
[1674236366967,33.95,22.097,22.075,20.0]
[1674236367403,10.0,22.096,22.075,20.0]
[1674236367594,33.95,22.095,22.075,40.92197811]
[1674236368136,10.0,22.094,22.076,20.92197811]
[1674236368330,10.0,22.094,22.077,20.0]
[1674236368542,10.0,22.094,22.078,17.0]
[1674236368754,10.0,22.094,22.079,20.0]
[1674236368965,10.0,22.094,22.08,17.0]
[1674236369187,10.0,22.094,22.081,20.0]
[1674236369512,10.0,22.094,22.082,17.0]
[1674236369709,10.0,22.096,22.082,17.0]
[1674236369909,10.0,22.098,22.083,0.96]
[1674236370116,10.0,22.098,22.082,92.85197811]
[1674236370454,10.0,22.098,22.082,71.93]
[1674236370640,10.0,22.098,22.082,92.85197811]
[1674236370853,10.0,22.098,22.082,37.96]
[1674236371816,10.0,22.098,22.082,20.0]
[1674236372218,10.0,22.098,22.076,53.98]
[1674236372427,10.0,22.096,22.076,53.98]
[1674236372633,10.0,22.096,22.077,10.0]
[1674236372867,10.0,22.096,22.077,30.92197811]
[1674236373073,10.0,22.096,22.078,92.86197811]
[1674236373602,10.0,22.096,22.078,58.88197811]
[1674236374765,10.0,22.096,22.078,57.92197811]
[1674236374979,10.0,22.096,22.078,37.0]
[1674236375370,10.0,22.096,22.072,33.99]
[1674236375582,33.95,22.095,22.068,33.99]
[1674236375791,25.95,22.09,22.069,19.42197811]
[1674236376010,33.96,22.089,22.05,36.09]
[1674236376233,149.8479,22.089,22.058,20.92197811]
[1674236376445,10.0,22.087,22.059,10.0]
[1674236376649,33.97,22.086,22.059,10.0]
[1674236376857,33.97,22.086,22.06,26.09]
[1674236377079,10.0,22.087,22.06,26.09]
[1674236377080,10.0,22.087,22.061,44.01]
[1674236377284,10.0,22.087,22.061,54.93197811]
[1674236377474,33.97,22.086,22.057,10.0]
[1674236377690,10.0,22.085,22.058,34.01]
[1674236377900,26.04,22.08,22.056,34.01]
[1674236378111,43.98,22.079,22.051,34.02]
[1674236378530,10.0,22.078,22.051,34.02]
[1674236378749,33.98,22.077,22.051,34.02]
[1674236379076,10.0,22.076,22.052,20.83463095]
[1674236379294,33.98,22.075,22.052,20.83463095]
[1674236379495,10.0,22.074,22.053,10.0]
[1674236379682,33.99,22.073,22.052,20.83463095]
[1674236379894,10.0,22.072,22.053,20.83463095]
[1674236381048,10.0,22.072,22.054,10.0]
[1674236381487,33.99,22.073,22.054,30.83463095]
[1674236381697,10.0,22.074,22.055,52.51]
[1674236381914,10.0,22.076,22.056,17.0]
[1674236382127,116.7634,22.077,22.058,10.0]
[1674236382330,116.7634,22.077,22.059,51.97]
[1674236382656,116.7634,22.077,22.06,30.0]
[1674236382868,10.0,22.081,22.061,51.97]
[1674236383082,10.0,22.081,22.061,72.80463095]
[1674236383293,10.0,22.081,22.062,50.83463095]
[1674236383482,10.0,22.081,22.063,51.0]
[1674236383693,10.0,22.081,22.063,37.83463095]
[1674236384436,10.0,22.081,22.064,10.0]
[1674236384642,10.0,22.081,22.065,17.0]
[1674236385073,10.0,22.081,22.066,10.0]
[1674236385394,10.0,22.081,22.067,17.0]
[1674236386013,10.0,22.081,22.065,17.0]
[1674236386221,10.0,22.081,22.066,0.96]
[1674236386546,10.0,22.081,22.066,17.0]
[1674236387398,10.0,22.081,22.064,17.0]
[1674236387799,10.0,22.081,22.064,38.10099301]
[1674236388338,10.0,22.081,22.064,17.0]
[1674236388548,10.0,22.081,22.063,21.10099301]
[1674236389175,43.97,22.081,22.057,30.0]
[1674236389395,43.97,22.081,22.059,54.01]
[1674236389578,43.97,22.081,22.059,20.0]
[1674236390015,10.0,22.08,22.059,20.0]
[1674236390222,33.98,22.079,22.057,10.0]
[1674236390543,10.0,22.078,22.058,20.0]
[1674236390751,33.98,22.077,22.056,20.0]
[1674236390957,10.0,22.076,22.055,20.0]
[1674236391166,10.0,22.074,22.055,20.0]
[1674236391995,10.0,22.074,22.056,17.0]
[1674236392206,10.0,22.074,22.057,20.0]
[1674236392419,10.0,22.076,22.058,61.97]
[1674236392645,10.0,22.078,22.06,10.0]
[1674236392856,10.0,22.078,22.061,17.0]
[1674236393059,10.0,22.078,22.062,20.0]
[1674236393386,10.0,22.079,22.063,27.0]
[1674236394513,10.0,22.079,22.063,17.0]
[1674236395909,10.0,22.081,22.064,10.96]
[1674236396218,43.97,22.087,22.066,10.0]
[1674236396435,10.0,22.087,22.067,51.96]
[1674236396619,10.0,22.087,22.068,20.0]
[1674236396828,10.0,22.087,22.069,51.95]
[1674236397032,10.0,22.087,22.069,73.05099301]
[1674236397267,10.0,22.087,22.07,30.0]
[1674236397586,10.0,22.087,22.071,73.05099301]
[1674236397776,10.0,22.087,22.072,20.0]
[1674236397986,10.0,22.092,22.073,51.95]
[1674236398213,10.0,22.092,22.074,20.0]
[1674236398532,10.0,22.092,22.075,61.94]
[1674236398846,10.0,22.092,22.076,20.0]
[1674236399055,10.0,22.092,22.078,10.0]
[1674236399275,10.0,22.097,22.079,71.94]
[1674236399451,10.0,22.097,22.079,70.98]
[1674236400939,10.0,22.097,22.08,10.96]
[1674236401149,10.0,22.097,22.081,70.94]
[1674236402084,10.0,22.097,22.081,37.0]
[1674236402507,10.0,22.097,22.081,33.12558]
[1674236403037,10.0,22.097,22.082,34.91]
[1674236403247,10.0,22.103,22.083,17.0]
[1674236403458,10.0,22.103,22.084,44.91]
[1674236403665,10.0,22.103,22.085,17.0]
[1674236403889,10.0,22.103,22.086,33.94]
[1674236404193,10.0,22.103,22.087,37.96]
[1674236404401,10.0,22.103,22.088,33.94]
[1674236404625,10.0,22.103,22.089,37.96]
[1674236404841,10.0,22.103,22.09,33.94]
[1674236405059,10.0,22.103,22.091,37.96]
[1674236405458,10.0,22.103,22.091,37.0]
[1674236405777,10.0,22.103,22.092,0.96]
[1674236405990,10.0,22.103,22.066,124.2349]
[1674236406189,10.0,22.103,22.081,10.0]
[1674236406710,10.0,22.103,22.083,10.0]
[1674236406921,10.0,22.103,22.084,33.81]
[1674236407572,10.0,22.103,22.082,33.81]
[1674236407885,33.94,22.102,22.081,10.0]
[1674236408096,10.0,22.101,22.081,10.0]
[1674236408292,10.0,22.101,22.082,33.81]
[1674236409130,10.0,22.101,22.083,17.0]
[1674236409336,10.0,22.105,22.083,17.0]
[1674236409337,10.0,22.105,22.084,33.92]
[1674236409556,10.0,22.105,22.086,10.0]
[1674236409773,10.0,22.105,22.087,70.92]
[1674236409972,10.0,22.105,22.087,50.92]
[1674236410197,10.0,22.105,22.087,17.0]
[1674236410408,10.0,22.103,22.087,17.0]
[1674236411034,10.0,22.103,22.088,0.96]
[1674236411254,10.0,22.103,22.088,22.06099301]
[1674236411446,10.0,22.103,22.089,50.91]
[1674236411654,10.0,22.103,22.09,0.96]
[1674236412608,10.0,22.103,22.09,20.96]
[1674236412810,10.0,22.103,22.091,17.0]
[1674236413021,10.0,22.103,22.092,20.0]
[1674236413226,10.0,22.105,22.093,17.0]
[1674236414706,10.0,22.105,22.092,20.0]
[1674236414912,10.0,22.105,22.083,10.0]
[1674236415141,33.94,22.104,22.084,33.81]
[1674236415562,10.0,22.103,22.085,10.0]
[1674236415762,10.0,22.103,22.084,33.81]
[1674236416732,10.0,22.105,22.085,20.0]
[1674236416909,10.0,22.105,22.086,33.81]
[1674236417127,10.0,22.105,22.087,27.96]
[1674236417339,10.0,22.105,22.088,33.8]
[1674236417647,10.0,22.105,22.089,37.96]
[1674236417860,10.0,22.105,22.09,33.82]
[1674236418091,10.0,22.105,22.091,37.0]
[1674236419878,10.0,22.105,22.092,33.82]
[1674236420091,10.0,22.105,22.093,17.0]
[1674236420590,10.0,22.105,22.092,33.82]
[1674236420800,10.0,22.105,22.082,33.81]
[1674236421143,10.0,22.105,22.076,118.429]
[1674236421144,33.94,22.104,22.08,33.82]
[1674236421852,10.0,22.103,22.081,10.0]
[1674236422057,10.0,22.103,22.082,33.81]
[1674236422612,10.0,22.103,22.083,17.96]
[1674236422826,10.0,22.103,22.084,33.81]
[1674236423134,10.0,22.103,22.085,17.0]
[1674236423659,43.94,22.105,22.085,17.0]
[1674236423867,10.0,22.105,22.086,34.83]
[1674236424061,10.0,22.105,22.087,17.0]
[1674236424494,10.0,22.105,22.087,50.87]
[1674236424707,10.0,22.105,22.084,33.87]
[1674236424919,33.94,22.104,22.078,33.88]
[1674236425232,33.94,22.104,22.079,20.0]
[1674236425233,10.0,22.103,22.079,20.0]
[1674236425446,33.94,22.102,22.08,33.88]
[1674236425658,10.0,22.103,22.081,20.0]
[1674236425843,10.0,22.103,22.082,43.88]
[1674236426275,10.0,22.103,22.082,33.88]
[1674236426491,10.0,22.103,22.083,17.0]
[1674236426697,10.0,22.103,22.083,17.96]
[1674236427463,10.0,22.103,22.084,10.0]
[1674236427655,10.0,22.103,22.085,51.85]
[1674236427864,10.0,22.103,22.086,10.0]
[1674236428083,10.0,22.103,22.087,51.85]
[1674236428701,10.0,22.103,22.089,10.0]
[1674236428909,10.0,22.105,22.09,50.89]
[1674236429125,10.0,22.105,22.091,20.0]
[1674236429338,10.0,22.11,22.092,17.0]
[1674236429542,10.0,22.11,22.093,0.96]
[1674236429760,10.0,22.11,22.093,10.96]
[1674236429967,110.8425,22.113,22.094,71.87099301]
[1674236430173,33.92,22.117,22.095,10.96]
[1674236430392,33.92,22.117,22.096,50.76]
[1674236430594,110.8425,22.117,22.097,20.96]
[1674236430927,110.8425,22.117,22.099,10.0]
[1674236431245,110.8425,22.117,22.1,71.72]
[1674236431648,10.0,22.119,22.1,71.72]
[1674236431863,10.0,22.119,22.101,10.0]
[1674236432073,10.0,22.119,22.102,71.71]
[1674236432599,10.0,22.119,22.103,10.0]
[1674236432806,10.0,22.12,22.104,51.62]
[1674236433024,10.0,22.121,22.105,20.0]
[1674236433226,10.0,22.121,22.106,51.62]
[1674236433846,10.0,22.121,22.107,20.0]
[1674236434057,10.0,22.121,22.108,50.66]
[1674236434263,10.0,22.121,22.109,20.0]
[1674236434479,10.0,22.121,22.11,17.0]
[1674236434691,10.0,22.121,22.111,20.0]
[1674236434905,10.0,22.121,22.112,17.0]
[1674236435542,10.0,22.123,22.112,17.0]
[1674236437979,10.0,22.125,22.113,0.96]
[1674236438161,10.0,22.128,22.114,10.0]
[1674236438491,10.0,22.128,22.115,33.59]
[1674236438705,10.0,22.128,22.115,51.55]
[1674236439532,10.0,22.128,22.111,20.0]
[1674236439966,28.088317,22.127,22.112,0.96]
[1674236441107,10.0,22.127,22.112,17.96]
[1674236441861,10.0,22.127,22.112,51.53]
[1674236442690,10.0,22.127,22.112,17.96]
[1674236443110,10.0,22.127,22.111,20.0]
[1674236443532,10.0,22.125,22.111,20.0]
[1674236443953,28.091295,22.127,22.111,20.0]
[1674236444168,28.091295,22.127,22.112,33.57]
[1674236444367,28.091295,22.127,22.113,0.96]
[1674236444578,28.091295,22.127,22.114,33.57]
[1674236444808,28.091295,22.127,22.115,17.96]
[1674236445024,10.0,22.128,22.116,17.96]
[1674236446154,10.0,22.128,22.116,0.96]
[1674236446359,10.0,22.128,22.114,50.54]
[1674236446586,10.0,22.128,22.115,0.96]
[1674236447005,10.0,22.128,22.114,33.54]
[1674236447220,10.0,22.128,22.115,0.96]
[1674236447952,10.0,22.128,22.112,33.93]
[1674236448261,10.0,22.128,22.111,53.93]
[1674236448477,10.0,22.128,22.112,17.0]
[1674236448896,28.088591,22.128,22.112,17.0]
[1674236450574,28.088591,22.128,22.113,0.96]
[1674236450785,28.088591,22.128,22.111,53.93]
[1674236451111,28.088591,22.128,22.111,20.0]
[1674236451319,28.088591,22.128,22.112,33.93]
[1674236451728,28.088591,22.128,22.113,10.0]
[1674236451934,10.0,22.128,22.113,10.0]
[1674236452169,10.0,22.128,22.114,17.0]
[1674236452375,10.0,22.128,22.113,17.0]
[1674236452588,10.0,22.128,22.114,21.10099301]
[1674236452784,10.0,22.128,22.115,17.0]
[1674236453114,10.0,22.128,22.111,20.0]
[1674236453304,69.4571,22.143,22.12,27.81]
[1674236453516,69.4571,22.143,22.121,53.91]
[1674236453829,10.0,22.142,22.122,10.0]
[1674236454056,10.0,22.142,22.13,27.86]
[1674236454373,10.0,22.142,22.131,20.0]
[1674236454561,10.0,22.142,22.132,17.0]
[1674236455196,10.0,22.15,22.132,17.0]
[1674236455418,119.2631,22.152,22.133,0.96]
[1674236455748,119.2631,22.152,22.14,27.61]
[1674236455749,10.0,22.151,22.14,27.61]
[1674236456053,28.068977,22.151,22.141,38.10099301]
[1674236456263,18.068977,22.151,22.142,20.0]
[1674236456474,18.068977,22.151,22.143,17.0]
[1674236456799,18.068977,22.151,22.143,38.10099301]
[1674236456987,18.068977,22.151,22.144,21.10099301]
[1674236457197,18.068977,22.151,22.145,17.0]
[1674236457403,33.85,22.159,22.143,17.0]
[1674236457624,10.0,22.158,22.143,17.0]
[1674236458258,10.0,22.158,22.143,38.10099301]
[1674236460976,28.06386,22.158,22.143,38.10099301]
[1674236461626,28.06386,22.158,22.144,0.96]
[1674236461940,28.06386,22.158,22.143,38.10099301]
[1674236461941,10.0,22.158,22.143,71.98099301]
[1674236462258,10.0,22.158,22.143,17.0]
[1674236462457,10.0,22.158,22.142,20.0]
[1674236463181,43.86,22.158,22.142,20.0]
[1674236463597,10.0,22.157,22.141,20.0]
[1674236463814,33.86,22.156,22.141,20.0]
[1674236464023,10.0,22.155,22.139,10.0]
[1674236464241,10.0,22.155,22.142,42.20198602]
[1674236464449,10.0,22.155,22.142,21.10099301]
[1674236465633,10.0,22.155,22.143,17.0]
[1674236466153,10.0,22.155,22.14,47.86]
[1674236466975,10.0,22.155,22.14,68.96099301]
[1674236467521,10.0,22.155,22.141,0.96]
[1674236467709,10.0,22.155,22.141,10.96]
[1674236467920,10.0,22.155,22.142,20.0]
[1674236468771,10.0,22.155,22.142,41.10099301]
[1674236468967,10.0,22.155,22.142,20.0]
[1674236469183,10.0,22.155,22.142,21.10099301]
[1674236470449,10.0,22.157,22.143,17.0]
[1674236470672,10.0,22.157,22.144,10.0]
[1674236470880,10.0,22.157,22.145,17.0]
[1674236471811,10.0,22.159,22.145,17.0]
[1674236472026,10.0,22.159,22.146,22.06099301]
[1674236472352,10.0,22.16,22.147,58.10099301]
[1674236472539,115.2548,22.161,22.15,27.61]
[1674236472750,33.83,22.174,22.151,20.0]
[1674236472957,143.5124,22.174,22.152,51.83]
[1674236473191,6.90336798,22.196,22.152,51.83]
[1674236473192,33.81,22.186,22.16,27.61]
[1674236473394,10.0,22.185,22.161,71.81]
[1674236473592,33.82,22.184,22.161,71.81]
[1674236473812,33.82,22.184,22.161,92.91099301]
[1674236474030,18.046721,22.174,22.163,10.0]
[1674236474355,18.046721,22.174,22.165,10.0]
[1674236474556,10.0,22.184,22.167,10.0]
[1674236474881,10.0,22.184,22.17,27.61]
[1674236475067,10.0,22.184,22.171,50.84]
[1674236475281,10.0,22.184,22.172,20.0]
[1674236475513,10.0,22.184,22.173,17.0]
[1674236476763,33.82,22.183,22.162,33.85]
[1674236476975,33.82,22.183,22.161,33.85]
[1674236477402,10.0,22.182,22.161,33.85]
[1674236477588,33.82,22.181,22.161,33.85]
[1674236477804,10.0,22.18,22.161,33.85]
[1674236478011,10.0,22.18,22.159,19.17]
[1674236479280,10.0,22.178,22.16,20.0]
[1674236479493,10.0,22.178,22.157,20.0]
[1674236479908,33.83,22.177,22.151,16.16]
[1674236480125,17.0,22.176,22.151,16.16]
[1674236480331,43.83,22.175,22.15,27.61]
[1674236480535,43.83,22.175,22.144,15.69]
[1674236480747,17.0,22.174,22.144,15.69]
[1674236480959,27.86,22.17,22.144,15.69]
[1674236481164,27.86,22.17,22.122,135.5]
[1674236481165,70.84,22.169,22.141,16.31]
[1674236481406,70.84,22.169,22.13,27.86]
[1674236481407,10.0,22.168,22.133,16.31]
[1674236481715,50.84,22.167,22.14,27.86]
[1674236482236,10.0,22.166,22.133,16.31]
[1674236482458,50.85,22.165,22.133,16.31]
[1674236482849,33.85,22.165,22.133,37.41099301]
[1674236483055,33.85,22.165,22.14,27.61]
[1674236483271,10.0,22.164,22.141,16.79]
[1674236483506,33.85,22.163,22.141,37.89099301]
[1674236483820,33.85,22.163,22.141,16.79]
[1674236484010,10.0,22.162,22.14,27.81]
[1674236484220,10.0,22.16,22.142,21.10099301]
[1674236484437,10.0,22.16,22.142,42.20198602]
[1674236484654,10.0,22.16,22.142,21.10099301]
[1674236485502,10.0,22.16,22.143,0.96]
[1674236485911,10.0,22.164,22.144,21.10099301]
[1674236486113,10.0,22.164,22.15,27.86]
[1674236486335,10.0,22.166,22.151,54.78]
[1674236486547,10.0,22.166,22.151,75.88099301]
[1674236486966,10.0,22.166,22.152,21.10099301]
[1674236487286,10.0,22.173,22.153,17.0]
[1674236487496,10.0,22.169,22.154,17.52]
[1674236487715,10.0,22.169,22.155,37.0]
[1674236487904,10.0,22.169,22.156,16.84]
[1674236488127,10.0,22.169,22.157,17.96]
[1674236488323,10.0,22.169,22.157,37.96]
[1674236488543,10.0,22.169,22.158,20.0]
[1674236488764,10.0,22.169,22.159,35.66]
[1674236489075,10.0,22.169,22.159,17.96]
[1674236489285,10.0,22.169,22.16,20.0]
[1674236489493,10.0,22.169,22.161,17.0]
[1674236489698,10.0,22.169,22.162,20.0]
[1674236489920,10.0,22.176,22.163,17.96]
[1674236490120,10.0,22.176,22.164,17.0]
[1674236490331,10.0,22.176,22.162,21.10099301]
[1674236490540,10.0,22.176,22.16,20.0]
[1674236490745,10.0,22.176,22.156,21.10099301]
[1674236490965,10.0,22.176,22.157,19.27]
[1674236491160,0.96,22.174,22.157,19.27]
[1674236491376,0.96,22.174,22.158,20.0]
[1674236491580,0.96,22.174,22.159,19.22]
[1674236491804,0.96,22.174,22.16,20.0]
[1674236492127,10.0,22.176,22.161,10.96]
[1674236492308,10.0,22.183,22.162,35.89]
[1674236492523,10.0,22.183,22.163,0.96]
[1674236492730,10.0,22.183,22.164,19.37]
[1674236492960,10.0,22.183,22.165,37.96]
[1674236493164,10.0,22.183,22.166,20.59]
[1674236493387,10.0,22.183,22.167,17.0]
[1674236493595,10.0,22.183,22.165,17.0]
[1674236493911,43.82,22.182,22.163,17.0]
[1674236494117,43.82,22.182,22.164,10.96]
[1674236494318,10.0,22.182,22.165,17.0]
[1674236494529,10.0,22.182,22.166,0.96]
[1674236494737,10.0,22.182,22.164,20.48]
[1674236494949,10.0,22.182,22.158,47.92050918]
[1674236495170,10.0,22.18,22.161,20.0]
[1674236495382,33.82,22.179,22.16,20.0]
[1674236495589,33.82,22.179,22.158,20.0]
[1674236495784,10.0,22.178,22.158,20.0]
[1674236495987,33.83,22.177,22.158,20.0]
[1674236496218,10.0,22.176,22.157,20.0]
[1674236496535,10.0,22.184,22.17,27.61]
[1674236496725,10.0,22.184,22.171,20.0]
[1674236497385,10.0,22.184,22.172,17.0]
[1674236498308,33.82,22.183,22.161,19.21]
[1674236498629,0.96,22.182,22.157,20.39696374]
[1674236498854,33.82,22.181,22.158,18.46]
[1674236499040,10.96,22.18,22.158,18.46]
[1674236499250,33.82,22.179,22.158,18.46]
[1674236499470,33.82,22.179,22.155,16.93]
[1674236499678,10.0,22.178,22.155,16.93]
[1674236499887,33.83,22.177,22.155,16.93]
[1674236500104,10.96,22.176,22.155,16.93]
[1674236500426,10.96,22.176,22.146,29.37948584]
[1674236500427,33.83,22.175,22.149,18.13]
[1674236500622,33.83,22.175,22.146,18.13]
[1674236500828,17.96,22.174,22.144,18.12]
[1674236501169,10.0,22.172,22.144,18.12]
[1674236501373,112.8398,22.209,22.161,5.38274752]
[1674236501565,110.0406,22.208,22.17,27.86]